[Event "British Championship 2024"]
[Site "Hull"]
[Date "2024.07.31"]
[Round "1.30"]
[White "Balaji, Aaravamudhan"]
[Black "Rida, Ruqayyah"]
[Result "1-0"]
[Annotator "RC"]
[ECO "E61"]
[WhiteElo "2346"]
[BlackElo "1962"]
[PlyCount "101"]
[EventDate "2024.07.31"]
[EventCountry "GBR"]
[SourceTitle "playchess.com"]
[Source "ChessBase"]
[SourceQuality "1"]
[TimeControl "40/5400+30:1800+30"]

1. Nf3 {[%emt 0:00:02]} Nf6 {[%emt 0:00:08]} 2. b3 {[%emt 0:00:03]} g6 {[%emt 0:00:09]} 3. Bb2 {[%emt 0:00:03]} Bg7 {[%emt 0:00:06]} 4. d4 {[%emt 0:00:02]} d6 {[%emt 0:00:48]} 5. e3 {[%emt 0:00:15]} O-O {[%emt 0:00:12]} 6. Be2 {[%emt 0:00:12]} c5 {[%emt 0:00:26]} 7. O-O {[%emt 0:00:13]} b6 {[%emt 0:01:55]} 8. c4 {[%emt 0:00:06]} Bb7 {[%emt 0:01:49]} 9. Nc3 {[%emt 0:03:12]} e6 {[%emt 0:06:50]} 10. Qc2 {[%emt 0:01:26]} Nc6 {[%emt 0:02:43]} 11. Rad1 {[%emt 0:05:45]} Qe7 {[%emt 0:01:54]} 12. Qc1 {[%emt 0:00:54]} Rad8 {[%emt 0:01:40]} 13. Rfe1 {[%emt 0:05:44]} Rfe8 {[%emt 0:01:42]} 14. h3 {[%emt 0:18:57]} e5 {[%emt 0:21:28]} 15. dxc5 {[%emt 0:23:19]} dxc5 {[%emt 0:01:45]} 16. Nd5 {[%emt 0:01:15]} Nxd5 {[%emt 0:01:19]} 17. cxd5 {[%emt 0:00:40]} Nb4 {[%emt 0:04:38]} 18. Bb5 {[%emt 0:23:46]} Rf8 {[%emt 0:02:32]} 19. e4 {[%emt 0:02:12]} a6 {[%emt 0:09:04]} 20. Bc4 {[%emt 0:06:59]} Nxa2 {[%emt 0:17:15]} 21. Qd2 {[%emt 0:04:19]} Qd6 {[%emt 0:06:02]} 22. Bxe5 {[%emt 0:00:27]} Bxe5 {[%emt 0:00:23]} 23. Nxe5 {[%emt 0:00:01]} Qxe5 {[%emt 0:00:13]} 24. Qxa2 {[%emt 0:00:01]} b5 {[%emt 0:00:41]} 25. Bf1 {[%emt 0:00:02]} Rfe8 {[%emt 0:00:48]} 26. Qd2 {[%emt 0:00:47]} Qd4 {[%emt 0:07:02]} 27. Qxd4 {[%emt 0:01:28]} cxd4 {[%emt 0:00:06]} 28. Re2 {[%emt 0:02:20]} f5 {[%emt 0:02:09]} 29. f3 {[%emt 0:00:00]} Kf7 {[%emt 0:02:45]} 30. Rxd4 {[%emt 0:00:00]} fxe4 {[%emt 0:01:13]} 31. fxe4 {[%emt 0:00:00]} Ke7 {[%emt 0:00:34]} 32. g3 {[%emt 0:00:33]} Kd6 {[%emt 0:00:17]} 33. Bg2 {[%emt 0:00:01]} Rc8 {[%emt 0:01:34]} 34. Kh2 {[%emt 0:00:49]} Rc3 {[%emt 0:01:04]} 35. b4 {[%emt 0:00:44]} Rc4 {[%emt 0:01:02]} 36. Rxc4 {[%emt 0:00:23]} bxc4 {[%emt 0:00:06]} 37. Rc2 {[%emt 0:00:11]} Rc8 {[%emt 0:00:28]} 38. Kg1 {[%emt 0:00:51]} Ke5 {[%emt 0:00:21]} 39. Kf2 {[%emt 0:00:09]} Kd4 {[%emt 0:01:11]} 40. Rd2+ {[%emt 0:01:20]} Ke5 {[%emt 0:02:03]} 41. Ke3 {[%emt 0:02:11]} a5 {[%emt 0:14:35]} 42. bxa5 {[%emt 0:15:06]} Rc5 {[%emt 0:01:18]} 43. Bf1 {[%emt 0:04:22]} Bc8 {[%emt 0:08:08]} 44. a6 {[%emt 0:05:44]} Bxa6 {[%emt 0:02:22]} 45. d6 {[%emt 0:00:12]} Rc8 {[%emt 0:00:25]} 46. d7 {[%emt 0:00:30]} Rd8 {[%emt 0:00:16]} 47. Rd5+ {[%emt 0:00:24]} Ke6 {[%emt 0:00:51]} 48. Ra5 {[%emt 0:00:44]} Bb7 {[%emt 0:01:33]} 49. Bxc4+ {[%emt 0:00:19]} Kxd7 {[%emt 0:02:19]} 50. Bd5 {[%emt 0:00:12]} Kc8 {[%emt 0:00:50]} 51. Rc5+ {[%emt 0:00:07]} 1-0

[Event "British Championship 2024"]
[Site "Hull"]
[Date "2024.07.31"]
[Round "1.31"]
[White "Dicen, Elis Denele"]
[Black "Richardson, John R"]
[Result "1-0"]
[Annotator "RC"]
[ECO "D36"]
[WhiteElo "2073"]
[BlackElo "2299"]
[PlyCount "75"]
[EventDate "2024.07.31"]
[EventCountry "GBR"]
[SourceTitle "playchess.com"]
[Source "ChessBase"]
[SourceQuality "1"]
[TimeControl "40/5400+30:1800+30"]

1. d4 {[%emt 0:00:03]} d5 {[%emt 0:00:03]} 2. c4 {[%emt 0:00:11]} c6 {[%emt 0:00:03]} 3. Nf3 {[%emt 0:00:41]} Nf6 {[%emt 0:00:07]} 4. Nc3 {[%emt 0:00:53]} e6 {[%emt 0:00:07]} 5. cxd5 {[%emt 0:01:08]} exd5 {[%emt 0:00:08]} 6. Qc2 {[%emt 0:00:42]} Be7 {[%emt 0:01:06]} 7. Bg5 {[%emt 0:01:44]} Nbd7 {[%emt 0:07:11]} 8. e3 {[%emt 0:00:42]} O-O {[%emt 0:02:22]} 9. Bd3 {[%emt 0:01:29]} Re8 {[%emt 0:00:30]} 10. O-O {[%emt 0:02:24]} h6 {[%emt 0:02:19]} 11. Bf4 {[%emt 0:00:47]} Nh5 {[%emt 0:07:59]} 12. Nxd5 {[%emt 0:03:32]} Nxf4 {[%emt 0:01:58]} 13. Nxf4 {[%emt 0:00:23]} Bd6 {[%emt 0:01:32]} 14. Ne2 {[%emt 0:02:16]} Nf6 {[%emt 0:04:14]} 15. Bf5 {[%emt 0:07:50]} Qa5 {[%emt 0:02:59]} 16. Bxc8 {[%emt 0:02:34]} Raxc8 {[%emt 0:00:01]} 17. Nc3 {[%emt 0:01:56]} Qh5 {[%emt 0:04:45]} 18. Rad1 {[%emt 0:07:31]} Bb8 {[%emt 0:16:49]} 19. Rfe1 {[%emt 0:12:11]} Re6 {[%emt 0:08:59]} 20. e4 {[%emt 0:07:51]} Nh7 {[%emt 0:04:32]} 21. e5 {[%emt 0:04:24]} Rg6 {[%emt 0:00:15]} 22. Ne2 {[%emt 0:10:48]} Ng5 {[%emt 0:05:33]} 23. Nxg5 {[%emt 0:01:21]} Qxg5 {[%emt 0:00:50]} 24. Qe4 {[%emt 0:02:22]} Re6 {[%emt 0:04:07]} 25. f4 {[%emt 0:02:01]} Qd8 {[%emt 0:03:13]} 26. f5 {[%emt 0:01:54]} Re8 {[%emt 0:00:11]} 27. Nf4 {[%emt 0:05:23]} Qc7 {[%emt 0:13:21]} 28. f6 {[%emt 0:08:15]} gxf6 {[%emt 0:07:07]} 29. Nh5 {[%emt 0:01:15]} Re6 {[%emt 0:01:54]} 30. Qg4+ {[%emt 0:01:05]} Kf8 {[%emt 0:00:00]} 31. Qg7+ {[%emt 0:01:17]} Ke8 {[%emt 0:00:46]} 32. Nxf6+ {[%emt 0:00:56]} Ke7 {[%emt 0:00:00]} 33. d5 {[%emt 0:04:45]} Qb6+ {[%emt 0:00:18]} 34. Kh1 {[%emt 0:00:10]} Rxe5 {[%emt 0:00:17]} 35. d6+ {[%emt 0:00:47]} Bxd6 {[%emt 0:01:06]} 36. Rxe5+ {[%emt 0:00:31]} Bxe5 {[%emt 0:00:03]} 37. Rd7+ {[%emt 0:00:19]} Ke6 {[%emt 0:00:05]} 38. Qxf7+ {[%emt 0:00:11]} 1-0

[Event "British Championship 2024"]
[Site "Hull"]
[Date "2024.07.31"]
[Round "1.32"]
[White "Golding, Alex"]
[Black "Subramanian, Anusha"]
[Result "1-0"]
[Annotator "RC"]
[ECO "B12"]
[WhiteElo "2296"]
[BlackElo "2050"]
[PlyCount "115"]
[EventDate "2024.07.31"]
[EventCountry "GBR"]
[SourceTitle "playchess.com"]
[Source "ChessBase"]
[SourceQuality "1"]
[TimeControl "40/5400+30:1800+30"]

1. e4 {[%emt 0:00:17]} c6 {[%emt 0:00:02]} 2. d4 {[%emt 0:00:09]} d5 {[%emt 0:00:03]} 3. e5 {[%emt 0:00:05]} Bf5 {[%emt 0:00:02]} 4. Nf3 {[%emt 0:02:15]} e6 {[%emt 0:00:07]} 5. Be2 {[%emt 0:00:07]} c5 {[%emt 0:00:36]} 6. O-O {[%emt 0:00:32]} Nc6 {[%emt 0:02:26]} 7. c3 {[%emt 0:04:54]} Nge7 {[%emt 0:08:50]} 8. Na3 {[%emt 0:04:57]} Ng6 {[%emt 0:09:04]} 9. Be3 {[%emt 0:02:15]} a6 {[%emt 0:05:36]} 10. Nd2 {[%emt 0:05:47]} h5 {[%emt 0:08:22]} 11. Nb3 {[%emt 0:02:16]} c4 {[%emt 0:04:50]} 12. Nd2 {[%emt 0:00:21]} b5 {[%emt 0:02:14]} 13. Nc2 {[%emt 0:00:29]} a5 {[%emt 0:07:14]} 14. a4 {[%emt 0:04:21]} bxa4 {[%emt 0:09:24]} 15. Na3 {[%emt 0:03:41]} Bxa3 {[%emt 0:02:57]} 16. Rxa3 {[%emt 0:00:22]} h4 {[%emt 0:03:06]} 17. Qxa4 {[%emt 0:02:00]} Qd7 {[%emt 0:03:31]} 18. b3 {[%emt 0:00:55]} Bc2 {[%emt 0:02:26]} 19. Rc1 {[%emt 0:00:45]} cxb3 {[%emt 0:03:43]} 20. Nxb3 {[%emt 0:00:08]} Bxb3 {[%emt 0:00:19]} 21. Qxb3 {[%emt 0:01:23]} O-O {[%emt 0:02:14]} 22. Bd3 {[%emt 0:01:30]} Nce7 {[%emt 0:01:12]} 23. Rca1 {[%emt 0:01:21]} Qc7 {[%emt 0:00:43]} 24. Qa2 {[%emt 0:00:14]} Rfc8 {[%emt 0:02:10]} 25. Bd2 {[%emt 0:00:16]} h3 {[%emt 0:06:00]} 26. g3 {[%emt 0:00:16]} Nc6 {[%emt 0:03:54]} 27. Bf1 {[%emt 0:01:32]} Rcb8 {[%emt 0:03:30]} 28. Bxh3 {[%emt 0:00:12]} Qb6 {[%emt 0:00:07]} 29. Bf1 {[%emt 0:00:42]} Nge7 {[%emt 0:00:36]} 30. Bd3 {[%emt 0:00:28]} Qc7 {[%emt 0:02:06]} 31. Qc2 {[%emt 0:00:37]} Rc8 {[%emt 0:00:44]} 32. Qd1 {[%emt 0:00:20]} Nf5 {[%emt 0:06:44]} 33. Qh5 {[%emt 0:01:08]} g6 {[%emt 0:00:20]} 34. Qg4 {[%emt 0:02:15]} Qe7 {[%emt 0:00:55]} 35. h4 {[%emt 0:01:36]} Ng7 {[%emt 0:00:29]} 36. Kg2 {[%emt 0:02:02]} Rab8 {[%emt 0:00:51]} 37. R3a2 {[%emt 0:00:08]} Rc7 {[%emt 0:00:44]} 38. Rh1 {[%emt 0:00:15]} Nh5 {[%emt 0:00:42]} 39. Qf3 {[%emt 0:00:08]} Ng7 {[%emt 0:00:27]} 40. Bg5 {[%emt 0:00:26]} Qf8 {[%emt 0:00:20]} 41. g4 {[%emt 0:30:18]} Ne8 {[%emt 0:12:32]} 42. h5 {[%emt 0:00:00]} Qg7 {[%emt 0:10:44]} 43. hxg6 {[%emt 0:00:00]} fxg6 {[%emt 0:03:05]} 44. Rh6 {[%emt 0:00:00]} Ne7 {[%emt 0:02:49]} 45. Qh3 {[%emt 0:00:00]} Rxc3 {[%emt 0:01:29]} 46. Bxe7 {[%emt 0:00:00]} Rxd3 {[%emt 0:00:47]} 47. Qxd3 {[%emt 0:00:00]} Qxh6 {[%emt 0:00:07]} 48. Ra1 {[%emt 0:00:00]} Qg7 {[%emt 0:01:40]} 49. Bg5 {[%emt 0:00:00]} Qf7 {[%emt 0:01:07]} 50. Rxa5 {[%emt 0:00:00]} Rb2 {[%emt 0:00:41]} 51. Be3 {[%emt 0:00:00]} Kg7 {[%emt 0:00:38]} 52. Qa3 {[%emt 0:00:00]} Rb7 {[%emt 0:00:32]} 53. Ra8 {[%emt 0:00:00]} Qd7 {[%emt 0:00:32]} 54. Bg5 {[%emt 0:00:00]} Qf7 {[%emt 0:00:31]} 55. Qh3 {[%emt 0:00:00]} Kg8 {[%emt 0:00:21]} 56. Bf6 {[%emt 0:00:00]} Kf8 {[%emt 0:00:38]} 57. Qh8+ {[%emt 0:00:00]} Qg8 {[%emt 0:00:05]} 58. Rxe8+ {[%emt 0:00:00]} 1-0

[Event "British Championship 2024"]
[Site "Hull"]
[Date "2024.07.31"]
[Round "1.33"]
[White "Starley, Robert"]
[Black "Mirzoeva, Elmira"]
[Result "0-1"]
[Annotator "RC"]
[ECO "B12"]
[WhiteElo "2017"]
[BlackElo "2260"]
[PlyCount "96"]
[EventDate "2024.07.31"]
[EventCountry "GBR"]
[SourceTitle "playchess.com"]
[Source "ChessBase"]
[SourceQuality "1"]
[TimeControl "40/5400+30:1800+30"]

1. e4 {[%emt 0:00:02]} c6 {[%emt 0:00:12]} 2. d4 {[%emt 0:00:05]} d5 {[%emt 0:00:13]} 3. e5 {[%emt 0:00:07]} Bf5 {[%emt 0:00:16]} 4. h4 {[%emt 0:00:08]} h5 {[%emt 0:00:33]} 5. Bd3 {[%emt 0:00:17]} Bxd3 {[%emt 0:00:44]} 6. Qxd3 {[%emt 0:00:07]} Qa5+ {[%emt 0:00:15]} 7. Nd2 {[%emt 0:00:15]} e6 {[%emt 0:00:44]} 8. Ngf3 {[%emt 0:00:24]} Nh6 {[%emt 0:01:02]} 9. O-O {[%emt 0:00:19]} Nf5 {[%emt 0:00:40]} 10. c4 {[%emt 0:00:34]} Be7 {[%emt 0:00:55]} 11. g3 {[%emt 0:00:32]} O-O {[%emt 0:06:25]} 12. b3 {[%emt 0:01:34]} Qa6 {[%emt 0:01:57]} 13. Bb2 {[%emt 0:01:09]} Nd7 {[%emt 0:00:42]} 14. Rfd1 {[%emt 0:03:06]} c5 {[%emt 0:07:24]} 15. dxc5 {[%emt 0:01:58]} Nxc5 {[%emt 0:00:40]} 16. Qc2 {[%emt 0:01:16]} Rfd8 {[%emt 0:09:28]} 17. cxd5 {[%emt 0:07:51]} Rxd5 {[%emt 0:00:47]} 18. Nc4 {[%emt 0:03:59]} Rxd1+ {[%emt 0:12:49]} 19. Rxd1 {[%emt 0:02:53]} Qxa2 {[%emt 0:05:26]} 20. b4 {[%emt 0:02:26]} Qa4 {[%emt 0:03:41]} 21. Qxa4 {[%emt 0:04:03]} Nxa4 {[%emt 0:00:27]} 22. Rd7 {[%emt 0:01:46]} b5 {[%emt 0:02:54]} 23. Ne3 {[%emt 0:05:45]} Nxe3 {[%emt 0:17:23]} 24. fxe3 {[%emt 0:00:21]} Bxb4 {[%emt 0:00:18]} 25. Bd4 {[%emt 0:00:32]} Bc5 {[%emt 0:27:05]} 26. Rb7 {[%emt 0:01:33]} Bxd4 {[%emt 0:00:00]} 27. Nxd4 {[%emt 0:00:30]} a6 {[%emt 0:00:00]} 28. Nc6 {[%emt 0:02:38]} Nc3 {[%emt 0:00:00]} 29. Nd4 {[%emt 0:03:03]} a5 {[%emt 0:00:00]} 30. Nxb5 {[%emt 0:00:32]} Nxb5 {[%emt 0:00:00]} 31. Rxb5 {[%emt 0:00:04]} a4 {[%emt 0:00:00]} 32. Rb2 {[%emt 0:00:27]} a3 {[%emt 0:00:00]} 33. Ra2 {[%emt 0:00:07]} Kh7 {[%emt 0:00:00]} 34. Kf2 {[%emt 0:00:35]} Kg6 {[%emt 0:00:00]} 35. e4 {[%emt 0:00:37]} Ra5 {[%emt 0:00:00]} 36. Kf3 {[%emt 0:01:03]} Ra4 {[%emt 0:00:00]} 37. Kf4 {[%emt 0:01:35]} f5 {[%emt 0:00:00]} 38. exf6 {[%emt 0:00:35]} gxf6 {[%emt 0:00:00]} 39. Kf3 {[%emt 0:01:00]} f5 {[%emt 0:00:00]} 40. exf5+ {[%emt 0:00:37]} Kxf5 {[%emt 0:00:00]} 41. Ke3 {[%emt 0:34:27]} Kg4 {[%emt 0:31:58]} 42. Kf2 {[%emt 0:00:16]} e5 {[%emt 0:00:30]} 43. Kg2 {[%emt 0:00:20]} e4 {[%emt 0:00:10]} 44. Rf2 {[%emt 0:00:30]} e3 {[%emt 0:01:02]} 45. Ra2 {[%emt 0:00:20]} Ra5 {[%emt 0:00:00]} 46. Kf1 {[%emt 0:00:00]} Kf3 {[%emt 0:00:00]} 47. Ke1 {[%emt 0:00:00]} Rb5 {[%emt 0:00:00]} 48. Ra1 {[%emt 0:00:00]} a2 {[%emt 0:00:00]} 0-1

[Event "British Championship 2024"]
[Site "Hull"]
[Date "2024.07.31"]
[Round "1.34"]
[White "Taylor, Adam A"]
[Black "Sanger, Jake M"]
[Result "0-1"]
[Annotator "RC"]
[ECO "D32"]
[WhiteElo "2281"]
[BlackElo "2026"]
[PlyCount "110"]
[EventDate "2024.07.31"]
[EventCountry "GBR"]
[SourceTitle "playchess.com"]
[Source "ChessBase"]
[SourceQuality "1"]
[TimeControl "40/5400+30:1800+30"]

1. Nf3 {[%emt 0:00:29]} Nf6 {[%emt 0:00:06]} 2. c4 {[%emt 0:00:05]} e6 {[%emt 0:00:06]} 3. b3 {[%emt 0:00:08]} d5 {[%emt 0:00:19]} 4. Bb2 {[%emt 0:00:11]} c5 {[%emt 0:01:05]} 5. e3 {[%emt 0:01:23]} Nc6 {[%emt 0:00:21]} 6. cxd5 {[%emt 0:00:24]} exd5 {[%emt 0:00:12]} 7. Nc3 {[%emt 0:00:24]} Be7 {[%emt 0:11:04]} 8. d4 {[%emt 0:04:12]} O-O {[%emt 0:00:12]} 9. Be2 {[%emt 0:00:39]} a6 {[%emt 0:01:12]} 10. O-O {[%emt 0:00:37]} Bg4 {[%emt 0:02:39]} 11. dxc5 {[%emt 0:12:34]} Bxc5 {[%emt 0:00:48]} 12. Rc1 {[%emt 0:00:07]} Ba7 {[%emt 0:02:01]} 13. h3 {[%emt 0:24:07]} Be6 {[%emt 0:05:21]} 14. Na4 {[%emt 0:11:09]} Ne4 {[%emt 0:01:25]} 15. Bxa6 {[%emt 0:12:49]} Nb4 {[%emt 0:05:04]} 16. Be2 {[%emt 0:00:51]} Re8 {[%emt 0:21:05]} 17. a3 {[%emt 0:08:56]} Nc6 {[%emt 0:00:05]} 18. Nc3 {[%emt 0:02:37]} Qe7 {[%emt 0:07:11]} 19. Nb5 {[%emt 0:01:52]} Bb8 {[%emt 0:02:00]} 20. b4 {[%emt 0:06:23]} Qd7 {[%emt 0:13:40]} 21. Nbd4 {[%emt 0:09:48]} Bxh3 {[%emt 0:06:25]} 22. Nxc6 {[%emt 0:00:02]} bxc6 {[%emt 0:06:09]} 23. Nd4 {[%emt 0:01:12]} Qd6 {[%emt 0:03:14]} 24. f4 {[%emt 0:00:05]} Bd7 {[%emt 0:00:48]} 25. Bg4 {[%emt 0:01:01]} Ba7 {[%emt 0:04:53]} 26. Re1 {[%emt 0:00:44]} Rac8 {[%emt 0:00:40]} 27. Rc2 {[%emt 0:00:32]} f6 {[%emt 0:01:57]} 28. Qf3 {[%emt 0:00:26]} c5 {[%emt 0:01:13]} 29. bxc5 {[%emt 0:00:06]} Rxc5 {[%emt 0:00:09]} 30. Rec1 {[%emt 0:00:31]} Rb8 {[%emt 0:00:49]} 31. Rxc5 {[%emt 0:01:00]} Bxc5 {[%emt 0:00:25]} 32. Bxd7 {[%emt 0:00:32]} Qxd7 {[%emt 0:00:33]} 33. Rc2 {[%emt 0:00:14]} Kh8 {[%emt 0:01:39]} 34. Qe2 {[%emt 0:00:46]} h6 {[%emt 0:00:29]} 35. Qf3 {[%emt 0:00:32]} Qa4 {[%emt 0:00:39]} 36. Qe2 {[%emt 0:00:13]} Bxd4 {[%emt 0:00:45]} 37. exd4 {[%emt 0:00:40]} Ng3 {[%emt 0:00:44]} 38. Qd1 {[%emt 0:00:27]} Re8 {[%emt 0:00:22]} 39. Qd3 {[%emt 0:00:24]} Ne4 {[%emt 0:01:01]} 40. Bc1 {[%emt 0:00:47]} f5 {[%emt 0:00:54]} 41. Bd2 {[%emt 0:01:25]} Re6 {[%emt 0:03:48]} 42. Bb4 {[%emt 0:00:45]} Rg6 {[%emt 0:01:04]} 43. Rc1 {[%emt 0:00:48]} Kh7 {[%emt 0:01:11]} 44. Qc2 {[%emt 0:08:26]} Qa7 {[%emt 0:00:48]} 45. Bc5 {[%emt 0:00:28]} Qc7 {[%emt 0:00:08]} 46. Rf1 {[%emt 0:00:38]} Qd8 {[%emt 0:02:06]} 47. Rf3 {[%emt 0:05:06]} Qh4 {[%emt 0:01:10]} 48. Qb3 {[%emt 0:01:13]} Qe1+ {[%emt 0:01:11]} 49. Kh2 {[%emt 0:00:37]} Nf2 {[%emt 0:03:09]} 50. Rxf2 {[%emt 0:00:04]} Qxf2 {[%emt 0:00:04]} 51. Qxd5 {[%emt 0:00:06]} Qxf4+ {[%emt 0:00:05]} 52. Kg1 {[%emt 0:00:35]} Qe3+ {[%emt 0:00:18]} 53. Kf1 {[%emt 0:00:03]} f4 {[%emt 0:00:30]} 54. Qf5 {[%emt 0:00:55]} Qc1+ {[%emt 0:01:37]} 55. Kf2 {[%emt 0:00:08]} Qd2+ {[%emt 0:00:12]} 0-1

[Event "British Championship 2024"]
[Site "Hull"]
[Date "2024.07.31"]
[Round "1.35"]
[White "Rathbone-Jones, Ifan"]
[Black "Pein, Jonathan"]
[Result "1-0"]
[Annotator "RC"]
[ECO "C41"]
[WhiteElo "2014"]
[BlackElo "2279"]
[PlyCount "73"]
[EventDate "2024.07.31"]
[EventCountry "GBR"]
[SourceTitle "playchess.com"]
[Source "ChessBase"]
[SourceQuality "1"]
[TimeControl "40/5400+30:1800+30"]

1. e4 {[%emt 0:00:03]} e5 {[%emt 0:03:55]} 2. Nf3 {[%emt 0:00:09]} d6 {[%emt 0:00:03]} 3. Bc4 {[%emt 0:00:11]} Nf6 {[%emt 0:00:12]} 4. Ng5 {[%emt 0:00:24]} d5 {[%emt 0:00:02]} 5. exd5 {[%emt 0:00:06]} h6 {[%emt 0:00:17]} 6. Nf3 {[%emt 0:00:11]} e4 {[%emt 0:00:14]} 7. Qe2 {[%emt 0:06:42]} Bb4 {[%emt 0:00:21]} 8. h3 {[%emt 0:06:48]} O-O {[%emt 0:00:51]} 9. Nh2 {[%emt 0:00:08]} Nxd5 {[%emt 0:12:59]} 10. Bxd5 {[%emt 0:00:33]} Qxd5 {[%emt 0:00:06]} 11. O-O {[%emt 0:11:49]} Bf5 {[%emt 0:14:23]} 12. Nc3 {[%emt 0:07:33]} Qe6 {[%emt 0:07:31]} 13. Nb5 {[%emt 0:15:20]} Nc6 {[%emt 0:10:02]} 14. g4 {[%emt 0:20:20]} Bh7 {[%emt 0:04:58]} 15. c3 {[%emt 0:06:03]} Ba5 {[%emt 0:01:41]} 16. f4 {[%emt 0:09:08]} exf3 {[%emt 0:18:27]} 17. Qxe6 {[%emt 0:00:38]} fxe6 {[%emt 0:02:07]} 18. Rxf3 {[%emt 0:00:03]} Rxf3 {[%emt 0:10:08]} 19. Nxf3 {[%emt 0:00:01]} Bd3 {[%emt 0:04:11]} 20. Nbd4 {[%emt 0:11:56]} Nxd4 {[%emt 0:05:28]} 21. Nxd4 {[%emt 0:00:01]} e5 {[%emt 0:01:06]} 22. Nf3 {[%emt 0:01:52]} Bb6+ {[%emt 0:01:24]} 23. Kg2 {[%emt 0:00:55]} Rf8 {[%emt 0:00:50]} 24. Nxe5 {[%emt 0:00:52]} Bf1+ {[%emt 0:00:22]} 25. Kg3 {[%emt 0:00:30]} c5 {[%emt 0:00:29]} 26. d4 {[%emt 0:00:32]} cxd4 {[%emt 0:00:13]} 27. Bf4 {[%emt 0:00:04]} Bb5 {[%emt 0:01:04]} 28. a4 {[%emt 0:01:02]} g5 {[%emt 0:00:34]} 29. axb5 {[%emt 0:00:16]} Rxf4 {[%emt 0:00:24]} 30. cxd4 {[%emt 0:00:28]} Rxd4 {[%emt 0:00:15]} 31. Rc1 {[%emt 0:00:34]} Rb4 {[%emt 0:00:35]} 32. Rc8+ {[%emt 0:00:26]} Kg7 {[%emt 0:00:03]} 33. Nc4 {[%emt 0:00:49]} Rxb5 {[%emt 0:00:34]} 34. Nd6 {[%emt 0:00:30]} Rb3+ {[%emt 0:00:11]} 35. Kg2 {[%emt 0:00:01]} Rxb2+ {[%emt 0:00:08]} 36. Kf3 {[%emt 0:00:07]} Rf2+ {[%emt 0:01:49]} 37. Ke4 {[%emt 0:00:01]} 1-0

[Event "British Championship 2024"]
[Site "Hull"]
[Date "2024.07.31"]
[Round "1.36"]
[White "Pein, Malcolm"]
[Black "Atako, Chino C"]
[Result "1-0"]
[Annotator "RC"]
[ECO "D12"]
[WhiteElo "2274"]
[BlackElo "2003"]
[PlyCount "85"]
[EventDate "2024.07.31"]
[EventCountry "GBR"]
[SourceTitle "playchess.com"]
[Source "ChessBase"]
[SourceQuality "1"]
[TimeControl "40/5400+30:1800+30"]

1. d4 {[%emt 0:00:07]} d5 {[%emt 0:00:05]} 2. c4 {[%emt 0:00:24]} c6 {[%emt 0:00:03]} 3. Nf3 {[%emt 0:00:15]} Nf6 {[%emt 0:00:03]} 4. e3 {[%emt 0:04:34]} Bf5 {[%emt 0:00:49]} 5. Nc3 {[%emt 0:00:28]} e6 {[%emt 0:00:24]} 6. Nh4 {[%emt 0:01:21]} Be4 {[%emt 0:04:43]} 7. f3 {[%emt 0:01:22]} Bg6 {[%emt 0:00:33]} 8. Qb3 {[%emt 0:01:16]} Qb6 {[%emt 0:03:16]} 9. Nxg6 {[%emt 0:01:39]} hxg6 {[%emt 0:00:03]} 10. Bd2 {[%emt 0:06:12]} Nbd7 {[%emt 0:01:48]} 11. Be2 {[%emt 0:02:14]} dxc4 {[%emt 0:21:57]} 12. Bxc4 {[%emt 0:06:46]} Qxb3 {[%emt 0:00:12]} 13. Bxb3 {[%emt 0:00:18]} Bd6 {[%emt 0:04:48]} 14. h3 {[%emt 0:07:18]} O-O-O {[%emt 0:04:14]} 15. O-O {[%emt 0:03:18]} Kb8 {[%emt 0:05:19]} 16. Rad1 {[%emt 0:04:24]} Nb6 {[%emt 0:03:46]} 17. e4 {[%emt 0:07:45]} Nfd7 {[%emt 0:02:36]} 18. Bg5 {[%emt 0:09:59]} f6 {[%emt 0:01:34]} 19. Be3 {[%emt 0:00:36]} Rhe8 {[%emt 0:00:49]} 20. Rfe1 {[%emt 0:05:25]} g5 {[%emt 0:02:05]} 21. e5 {[%emt 0:02:34]} Bc7 {[%emt 0:00:38]} 22. Ne4 {[%emt 0:10:43]} Nd5 {[%emt 0:01:03]} 23. Bf2 {[%emt 0:00:09]} a6 {[%emt 0:14:32]} 24. a3 {[%emt 0:01:24]} Nf4 {[%emt 0:00:31]} 25. g3 {[%emt 0:01:12]} Nxh3+ {[%emt 0:00:47]} 26. Kg2 {[%emt 0:00:03]} Nxf2 {[%emt 0:00:23]} 27. Kxf2 {[%emt 0:00:22]} fxe5 {[%emt 0:13:36]} 28. Nxg5 {[%emt 0:00:40]} exd4 {[%emt 0:00:11]} 29. Nxe6 {[%emt 0:02:48]} Rxe6 {[%emt 0:00:41]} 30. Bxe6 {[%emt 0:00:16]} c5 {[%emt 0:02:38]} 31. f4 {[%emt 0:02:52]} b5 {[%emt 0:00:12]} 32. b3 {[%emt 0:00:11]} Nb6 {[%emt 0:00:53]} 33. Re4 {[%emt 0:02:07]} Nd5 {[%emt 0:00:46]} 34. Bxd5 {[%emt 0:00:19]} Rxd5 {[%emt 0:00:03]} 35. Ke2 {[%emt 0:08:09]} g5 {[%emt 0:00:09]} 36. b4 {[%emt 0:01:56]} gxf4 {[%emt 0:00:36]} 37. gxf4 {[%emt 0:00:08]} cxb4 {[%emt 0:02:40]} 38. axb4 {[%emt 0:00:21]} a5 {[%emt 0:01:58]} 39. Rdxd4 {[%emt 0:02:05]} Rf5 {[%emt 0:00:52]} 40. bxa5 {[%emt 0:00:32]} Bxa5 {[%emt 0:01:11]} 41. Re5 {[%emt 0:30:51]} Rxe5+ {[%emt 0:30:17]} 42. fxe5 {[%emt 0:00:03]} Bc3 {[%emt 0:00:14]} 43. e6 {[%emt 0:00:50]} 1-0